fUST/lending_fUST_20251209
["ID","MTS","AMOUNT","RATE_DAILY","PERIOD"]
[397970897,1765260638554,-500.896952,7.123e-05,2]
[397970899,1765260638564,-500.0,7.123e-05,2]
[397970902,1765260638574,-500.84243028,7.123e-05,2]
[397970903,1765260638583,-500.0,7.123e-05,2]
[397970906,1765260638593,-500.72189538,7.123e-05,2]
[397970907,1765260638605,-500.0,7.123e-05,2]
[397970909,1765260638614,-151.40032553,7.123e-05,2]
[397970915,1765260638655,-349.23706108,7.123e-05,2]
[397970917,1765260638665,-500.0,7.123e-05,2]
[397970919,1765260638674,-500.0,7.123e-05,2]
[397970921,1765260638683,-500.0,7.123e-05,2]
[397970923,1765260638693,-500.0,7.123e-05,2]
[397970925,1765260638702,-500.0,7.123e-05,2]
[397970927,1765260638712,-500.79915076,7.123e-05,2]
[397970928,1765260638722,-500.0,7.123e-05,2]
[397970930,1765260638731,-500.8180074,7.123e-05,2]
[397970932,1765260638740,-523.66,7.123e-05,2]
[397970934,1765260638749,-500.0,7.123e-05,2]
[397970936,1765260638759,-501.09716064,7.123e-05,2]
[397970938,1765260638768,-841.64,7.123e-05,2]
[397970940,1765260638777,-500.0,7.123e-05,2]
[397970942,1765260638786,-500.79943438,7.123e-05,2]
[397970944,1765260638796,-500.0,7.123e-05,2]
[397970946,1765260638806,-619.03,7.123e-05,2]
[397970947,1765260638815,-172.41373707,7.123e-05,2]
[397970948,1765260638824,-500.51,7.123e-05,2]
[397970949,1765260638833,-500.0,7.123e-05,2]
[397970950,1765260638844,-1485.86,7.123e-05,2]
[397970951,1765260638853,-898.44,7.123e-05,2]
[397970952,1765260638862,-1000.0,7.123e-05,2]
[397970953,1765260638871,-500.0,7.123e-05,2]
[397970954,1765260638880,-500.0,7.123e-05,2]
[397970955,1765260638890,-500.0,7.123e-05,2]
[397970956,1765260638899,-846.81,7.123e-05,2]
[397970957,1765260638908,-500.0,7.123e-05,2]
[397970958,1765260638918,-439.69061837,7.123e-05,2]
[397971090,1765260640473,-60.30938163,7.123e-05,2]
[397971092,1765260640483,-500.80215649,7.123e-05,2]
[397971094,1765260640491,-500.0,7.123e-05,2]
[397971096,1765260640501,-500.0,7.123e-05,2]
[397971098,1765260640510,-500.0,7.123e-05,2]
[397971100,1765260640520,-441.23906776,7.123e-05,2]
[397971104,1765260640548,-58.76093224,7.123e-05,2]
[397971106,1765260640557,-592.01,7.123e-05,2]
[397971108,1765260640566,-1089.4,7.123e-05,2]
[397971109,1765260640576,-500.0,7.123e-05,2]
[397971111,1765260640585,-500.0,7.123e-05,2]
[397971114,1765260640596,-516.78,7.123e-05,2]
[397971116,1765260640606,-500.0,7.123e-05,2]
[397971118,1765260640616,-500.0,7.123e-05,2]
[397971119,1765260640625,-349.6074457,7.123e-05,2]
[397971596,1765260646128,-150.3925543,7.123e-05,2]
[397971598,1765260646139,-403.54759924,7.123e-05,2]
[397971600,1765260646148,-521.67624646,7.123e-05,2]
[397971604,1765260646185,-39.28375354,7.123e-05,2]
[397971606,1765260646194,-754.16,7.123e-05,2]
[397971608,1765260646203,-282.17264646,7.123e-05,2]
[397973869,1765261114866,170.92,0.00013971,30]
[397973924,1765261327862,241.70927795,0.000199,99]
[397973925,1765261328600,241.70927795,0.000199,99]
[397973926,1765261328721,241.70927795,0.000199,99]
[397973927,1765261329072,241.70927795,0.000199,99]
[397973928,1765261329475,241.70927795,0.000199,99]
[397973929,1765261329934,241.70927795,0.000199,99]
[397973930,1765261330331,241.70927795,0.000199,99]
[397973931,1765261330799,241.70927795,0.000199,99]
[397973932,1765261331193,241.70927795,0.000199,99]
[397973933,1765261331638,241.70927795,0.000199,99]
[397973934,1765261332074,241.70927795,0.000199,99]
[397973935,1765261332478,241.70927795,0.000199,99]
[397973936,1765261332892,241.70927795,0.000199,99]
[397973937,1765261333320,241.70927795,0.000199,99]
[397973938,1765261333715,241.70927795,0.000199,99]
[397973939,1765261339507,169.99,0.00013902,30]
[397973942,1765261553101,-1553.05217297,5.332e-05,2]
[397973946,1765261637076,-218.91208292,5.332e-05,2]
[397973947,1765261641104,-3228.03574411,5.332e-05,2]
[397973948,1765261641129,-110.3461524,5.359e-05,2]
[397973949,1765261643088,-199.7751056,5.359e-05,2]
[397973950,1765261643109,-5000.0,5.386e-05,2]
[397973951,1765261643135,-1200.0,5.494e-05,2]
[397973952,1765261643159,-300.0,5.544e-05,2]
[397973953,1765261643179,-300.0,5.546e-05,2]
[397973954,1765261643200,-300.0,5.546e-05,2]
[397973955,1765261643222,-300.0,5.546e-05,2]
[397973956,1765261643242,-1200.0,5.549e-05,2]
[397973957,1765261643263,-500.0,5.55e-05,2]
[397973958,1765261643284,-3560.255584,5.906e-05,2]
[397973959,1765261643307,-221.73393455,6.023e-05,2]
[397973960,1765261644137,-78.26606545,6.023e-05,2]
[397973961,1765261644159,-204.12296122,6.023e-05,2]
[397973962,1765261650118,-95.87703878,6.023e-05,2]
[397973963,1765261650142,-300.0,6.023e-05,2]
[397973964,1765261650167,-300.0,6.023e-05,2]
[397973965,1765261650191,-300.0,6.023e-05,2]
[397973966,1765261650215,-300.0,6.023e-05,2]
[397973967,1765261650239,-300.0,6.023e-05,2]
[397973968,1765261650263,-17.22248238,6.023e-05,2]
[397973969,1765261652397,-422.27282535,5.963e-05,2]
[397974020,1765261832229,-4020.40068264,5.963e-05,2]
[397974022,1765261832239,-506.0,5.963e-05,2]
[397974024,1765261832248,-1200.0,6.022e-05,2]
[397974026,1765261832257,-300.0,6.022e-05,2]
[397974028,1765261832267,-300.0,6.022e-05,2]
[397974030,1765261832276,-1200.0,6.022e-05,2]
[397974032,1765261832285,-282.77751762,6.023e-05,2]
[397974034,1765261832295,-300.0,6.023e-05,2]
[397974036,1765261832306,-300.0,6.023e-05,2]
[397974038,1765261832315,-300.0,6.023e-05,2]
[397974040,1765261832324,-300.0,6.023e-05,2]
[397974042,1765261832334,-300.0,6.023e-05,2]
[397974044,1765261832343,-300.0,6.023e-05,2]
[397974046,1765261832352,-300.0,6.023e-05,2]
[397974048,1765261832362,-600.0,6.142e-05,2]
[397974050,1765261832371,-372.0,6.624e-05,2]
[397974052,1765261832380,-301.0,6.624e-05,2]
[397974054,1765261832389,-420.0,6.624e-05,2]
[397974056,1765261832399,-2398.4119403,6.645e-05,2]
[397974058,1765261832409,-792.22408384,6.71e-05,2]
[397974060,1765261832419,-500.0,6.72e-05,2]
[397974062,1765261832429,-500.0,6.72e-05,2]
[397974064,1765261832438,-500.0,6.72e-05,2]
[397974066,1765261832448,-500.0,6.72e-05,2]
[397974068,1765261832457,-500.0,6.72e-05,2]
[397974070,1765261832466,-500.0,6.72e-05,2]
[397974072,1765261832475,-500.0,6.72e-05,2]
[397974074,1765261832484,-500.0,6.72e-05,2]
[397974076,1765261832493,-500.0,6.72e-05,2]
[397974078,1765261832503,-380.96393249,6.72e-05,2]
[397974080,1765261832511,-263.30715264,6.72e-05,2]
[397974082,1765261832520,-500.0,6.72e-05,2]
[397974084,1765261832529,-500.0,6.72e-05,2]
[397974086,1765261832541,-500.0,6.72e-05,2]
[397974088,1765261832550,-500.0,6.72e-05,2]
[397974090,1765261832558,-500.0,6.72e-05,2]
[397974092,1765261832568,-500.0,6.72e-05,2]
[397974094,1765261832577,-500.0,6.72e-05,2]
[397974096,1765261832586,-500.0,6.72e-05,2]
[397974098,1765261832595,-463.84954721,6.72e-05,2]
[397974100,1765261832604,-2156.0,6.721e-05,2]
[397974102,1765261832613,-1360.0,6.721e-05,2]
[397974104,1765261832623,-631.0,6.721e-05,2]
[397974106,1765261832632,-416.566,6.721e-05,2]
[397974108,1765261832641,-720.0,6.757e-05,2]
[397974110,1765261832650,-572.101,6.923e-05,2]
[397974112,1765261832659,-48973.44884952,6.923e-05,2]
[397974114,1765261832671,-200000.0,6.923e-05,2]
[397974125,1765261832766,-24.32356477,6.923e-05,2]
[397974127,1765261832777,-44661.66161688,6.923e-05,2]
[397974135,1765261832835,-1216.25885995,6.923e-05,2]
[397974137,1765261832846,-113994.17351433,6.923e-05,2]
[397974170,1765261838298,-3335.44602688,6.923e-05,2]
[397974172,1765261838434,-179.23328013,6.923e-05,2]
[397974174,1765261838445,-1142.13736508,6.923e-05,2]
[397974176,1765261838456,-1567.3008456,6.923e-05,2]
[397974179,1765261838468,-617.98410226,6.923e-05,2]
[397974181,1765261838479,-1373.14626632,6.923e-05,2]
[397974184,1765261838497,-80260.71439664,6.923e-05,2]
[397974186,1765261838509,-17246.27715036,6.923e-05,2]
[397974188,1765261838520,-50927.20767049,6.923e-05,2]
[397974191,1765261838531,-23241.93743262,6.923e-05,2]
[397974193,1765261838543,-32987.89925653,6.923e-05,2]
[397974195,1765261838555,-19227.72316444,6.923e-05,2]
[397974198,1765261838567,-16861.96021824,6.923e-05,2]
[397974200,1765261838585,-343.48819371,6.923e-05,2]
[397974215,1765261838717,-1453.52940268,6.923e-05,2]
[397974410,1765261840678,-370.93132183,6.923e-05,2]
[397974412,1765261840692,-601.7533848,6.923e-05,2]
[397974414,1765261840705,-420.0,6.923e-05,2]
[397974675,1765261843493,-17194.30524317,6.923e-05,2]
[397974678,1765261843516,-100.0,6.923e-05,2]
[397974930,1765261846267,-40063.90011786,6.923e-05,2]
[397974935,1765261846311,-46.91920282,6.923e-05,2]
[397974946,1765261846411,-31.37655852,6.923e-05,2]
[397977517,1765262250980,-3000.0,0.00035841,120]
[397977518,1765262251004,-151.81501179,0.00035841,30]
[397977519,1765262251027,-160.07347262,0.00035841,120]
[397977520,1765262251051,-5329.97,0.00035841,120]
[397977521,1765262251075,-5329.97,0.00035841,120]
[397977522,1765262251100,-5329.97,0.00035841,120]
[397977523,1765262251125,-5329.97,0.00035841,120]
[397977524,1765262251149,-5329.97,0.00035841,120]
[397977525,1765262251173,-5329.97,0.00035841,120]
[397977526,1765262251197,-5329.97,0.00035841,120]
[397977527,1765262251221,-5329.97,0.00035841,120]
[397977528,1765262251247,-5329.97,0.00035841,120]
[397977529,1765262251273,-5329.97,0.00035841,120]
[397977530,1765262251296,-5329.97,0.00035841,120]
[397977531,1765262251320,-5329.97,0.00035841,120]
[397977532,1765262251345,-5329.97,0.00035841,120]
[397977533,1765262251368,-5329.97,0.00035841,120]
[397977534,1765262251391,-5329.97,0.00035841,120]
[397977535,1765262251414,-5329.97,0.00035841,120]
[397977536,1765262251438,-5329.97,0.00035841,120]
[397977537,1765262251675,-5329.97,0.00035841,120]
[397977538,1765262251702,-5329.97,0.00035841,120]
[397977539,1765262251734,-5329.97,0.00035841,120]
[397977540,1765262251765,-5329.97,0.00035841,120]
[397977541,1765262251792,-5329.97,0.00035841,120]
[397977542,1765262251817,-5329.97,0.00035841,120]
[397977543,1765262251844,-5330.1608076,0.00035841,120]
[397977544,1765262251869,-2199.91897227,0.00035841,120]
[397977545,1765262251894,-500.0,0.00035841,120]
[397977546,1765262251919,-500.0,0.00035841,120]
[397977547,1765262251946,-553.65848,0.00035841,120]
[397977548,1765262251971,-309.0,0.00035841,30]
[397977549,1765262251994,-1008.11290826,0.00035841,120]
[397977550,1765262252018,-491.34737827,0.00035841,120]
[397977551,1765262252042,-1071.22259206,0.00035841,120]
[397977552,1765262252066,-286.33526106,0.00035841,120]
[397977553,1765262252089,-934.31084499,0.00035841,120]
[397977554,1765262252115,-1787.23125119,0.00035841,30]
[397977555,1765262252140,-368.50794776,0.00035841,120]
[397977556,1765262252163,-850.59143563,0.00035841,120]
[397977557,1765262252187,-1003.85358772,0.00035841,120]
[397977558,1765262252212,-481.38644009,0.00035841,60]
[397977559,1765262252237,-953.24905305,0.00035841,120]
[397977560,1765262252262,-349.03460746,0.00035841,120]
[397977561,1765262252286,-151.10165732,0.00035841,30]
[397977562,1765262252311,-921.47705517,0.00035841,60]
[397977563,1765262252336,-168.07306701,0.00035841,120]
[397977564,1765262252361,-487.8451932,0.00035841,120]
[397977565,1765262252387,-974.06369147,0.00035841,30]
[397977566,1765262252412,-423.60284886,0.00035841,30]
[397977567,1765262252437,-240.82074905,0.00035841,120]
[397977568,1765262252461,-12476.25404222,0.00035841,30]
[397977569,1765262252488,-251.95273838,0.00035841,120]
[397977570,1765262252512,-1054.80357287,0.00035841,120]
[397977571,1765262252537,-300.0,0.00035841,120]
[397977572,1765262252564,-577.00727577,0.00035841,120]
[397977573,1765262252587,-1826.64913645,0.00035841,30]
[397977574,1765262252611,-200.0,0.00035841,120]
[397977575,1765262252635,-1048.60849925,0.00035841,120]
[397977576,1765262252659,-497.71423304,0.00035841,30]
[397977577,1765262252683,-411.14947078,0.00035841,30]
[397977578,1765262252707,-1223.42803456,0.00035841,30]
[397977579,1765262252731,-224.62194357,0.00035841,120]
[397977580,1765262252756,-543.50397107,0.00035841,120]
[397977581,1765262252781,-2040.87337734,0.00035841,120]
[397977582,1765262252806,-329.56910812,0.00035841,120]
[397977583,1765262252830,-619.5940455,0.00035841,120]
[397977584,1765262252855,-566.86717321,0.00035841,120]
[397977585,1765262252881,-205.36874242,0.00035841,120]
[397977586,1765262252907,-169.01669577,0.00035841,120]
[397977587,1765262252932,-552.50474917,0.00035841,120]
[397977588,1765262252956,-1063.87475622,0.00035841,30]
[397977589,1765262252979,-355.26140981,0.00035841,30]
[397977590,1765262253002,-626.23022877,0.00035841,120]
[397977591,1765262253026,-315.25756005,0.00035841,120]
[397977592,1765262253049,-367.81757808,0.00035841,120]
[397977593,1765262253072,-357.80326,0.00035841,120]
[397977594,1765262253095,-1308.92520809,0.00035841,120]
[397977595,1765262253119,-894.02589714,0.00035841,120]
[397977596,1765262253141,-177.48319779,0.00035841,120]
[397977597,1765262253165,-435.87772782,0.00035841,120]
[397977598,1765262253187,-507.78790044,0.00035841,120]
[397977599,1765262253211,-314.32283135,0.00035841,30]
[397977600,1765262253234,-544.60006317,0.00035841,30]
[397977601,1765262253256,-627.30777936,0.00035841,120]
[397977602,1765262253279,-162.73029671,0.00035841,120]
[397977603,1765262253302,-586.77978971,0.00035841,120]
[397977604,1765262253325,-505.43031782,0.00035841,60]
[397977605,1765262253349,-1010.81186748,0.00035841,30]
[397977606,1765262253372,-970.51294474,0.00035841,60]
[397977607,1765262253396,-167.98975678,0.00035841,30]
[397977608,1765262253418,-181.49687805,0.00035841,31]
[397977609,1765262253442,-338.33183872,0.00035841,30]
[397977610,1765262253465,-735.56669966,0.00035841,120]
[397977611,1765262253490,-848.02860415,0.00035841,31]
[397977612,1765262253514,-1091.94336621,0.00035841,30]
[397977613,1765262253538,-556.07487623,0.00035841,120]
[397977614,1765262253560,-157.08914114,0.00035841,30]
[397977615,1765262253583,-573.98942877,0.00035841,30]
[397977616,1765262253607,-3784.16363359,0.00035841,30]
[397977617,1765262253631,-436.79731571,0.00035841,31]
[397977618,1765262253655,-1000.08770092,0.00035841,120]
[397977619,1765262253680,-500.0,0.00035841,120]
[397977620,1765262253703,-1016.21,0.00035841,120]
[397977621,1765262253727,-6442.8795135,0.00035841,120]
[397977622,1765262253752,-50000.0,0.00035841,40]
[397977623,1765262253775,-2006.03255069,0.00035841,32]
[397977624,1765262253799,-172.0,0.00035841,120]
[397977625,1765262253822,-152.39,0.00035841,120]
[397977626,1765262253846,-404.14307756,0.00035841,30]
[397977627,1765262253870,-10000.0,0.00035841,30]
[397977628,1765262253894,-17103.0,0.00035841,120]
[397977629,1765262253918,-2125.0,0.00035841,30]
[397977630,1765262253942,-1000.0,0.00035841,120]
[397977631,1765262253966,-1000.0,0.00035841,120]
[397977632,1765262253990,-19999.999999,0.00035841,30]
[397977633,1765262254014,-5044.36024762,0.00035841,120]
[397977634,1765262254038,-2034.99174458,0.00035841,60]
[397977635,1765262254061,-180505.48085985,0.00035841,30]
[397977636,1765262254085,-2915631.11154632,0.00035841,30]
[397977637,1765262254108,-394791.72492198,0.00035841,30]
[397977638,1765262254292,-13515.69435792,0.00035841,120]
[397977639,1765262254317,-1446.41280887,0.00035841,120]
[397977640,1765262254340,-3817.9404035,0.00035841,120]
[397977641,1765262254365,-1150.0,0.00035841,31]
[397977642,1765262254390,-232.2649318,0.00035841,120]
[397977643,1765262254414,-1108.681999,0.00035841,120]
[397977644,1765262254437,-60047.36087996,0.00035841,120]
[397977645,1765262254462,-8303.0,0.00035841,120]
[397977646,1765262254489,-1261.382,0.00035841,120]
[397977647,1765262254512,-2153.63642624,0.00035841,60]
[397977648,1765262254538,-10046.01180183,0.00035841,31]
[397977649,1765262254562,-476.38591068,0.00035841,31]
[397977650,1765262254586,-736.57437499,0.00035841,120]
[397977651,1765262254611,-1369.97466953,0.00035841,120]
[397977652,1765262254635,-299.00238924,0.00035841,120]
[397977653,1765262254659,-3653.30980746,0.00035841,120]
[397977654,1765262254682,-801.3675794,0.00035841,120]
[397977655,1765262254706,-500.0,0.00035841,120]
[397977656,1765262254731,-511.72294997,0.00035841,120]
[397977657,1765262254756,-11782.54014141,0.00035841,120]
[397977658,1765262254780,-705.38358209,0.00035841,120]
[397977659,1765262254803,-8242.52265985,0.00035841,120]
[397977660,1765262254827,-504.56161561,0.00035841,30]
[397977661,1765262254850,-2671.0,0.00035841,120]
[397977662,1765262254875,-4275.66,0.00035841,120]
[397977663,1765262254899,-4275.66,0.00035841,120]
[397977664,1765262254925,-4275.66,0.00035841,120]
[397977665,1765262254949,-4275.66,0.00035841,120]
[397977666,1765262254973,-4275.66,0.00035841,120]
[397977667,1765262254997,-4275.66,0.00035841,120]
[397977668,1765262255021,-4275.66,0.00035841,120]
[397977669,1765262255045,-4275.66,0.00035841,120]
[397977670,1765262255076,-4275.66,0.00035841,120]
[397977671,1765262255100,-4275.66,0.00035841,120]
[397977672,1765262255124,-4275.66,0.00035841,120]
[397977673,1765262255148,-4275.66,0.00035841,120]
[397977674,1765262255173,-4275.66,0.00035841,120]
[397977675,1765262255199,-4275.66,0.00035841,120]
[397977676,1765262255227,-504.71327168,0.00035841,120]
[397977677,1765262264853,-2180.61228421,0.00035841,20]
[397977678,1765262264879,-8090.22204754,0.00035841,20]
[397977679,1765262264904,-295875.79405025,0.00035841,20]
[397977680,1765262264929,-3643.0,0.00035841,20]
[397977681,1765262264954,-5838.9573938,0.00035841,20]
[397977682,1765262264981,-3770.94672832,0.00035841,120]
[397977683,1765262265008,-4275.66,0.00035841,120]
[397977684,1765262265033,-4275.66,0.00035841,120]
[397977685,1765262265058,-4275.66,0.00035841,120]
[397977686,1765262265082,-4275.66,0.00035841,120]
[397977687,1765262265107,-4275.66,0.00035841,120]
[397977688,1765262265132,-4275.66,0.00035841,120]
[397977689,1765262265156,-4275.66,0.00035841,120]
[397977690,1765262265182,-4275.66,0.00035841,120]
[397977691,1765262265207,-4275.7317772,0.00035841,120]
[397977692,1765262265231,-5662.84442347,0.00035841,60]
[397977693,1765262265255,-1000.0,0.00035841,30]
[397977694,1765262265279,-1000.0,0.00035841,30]
[397977695,1765262265302,-1000.0,0.00035841,30]
[397977696,1765262265326,-1000.0,0.00035841,30]
[397977697,1765262265349,-1000.0,0.00035841,30]
[397977698,1765262265372,-1580.358591,0.00035841,30]
[397977699,1765262265396,-200.0,0.00035841,30]
[397977700,1765262265419,-151.0,0.00035841,31]
[397977701,1765262265441,-151.547957,0.00035841,31]
[397977702,1765262265464,-692.658956,0.00035841,31]
[397977703,1765262265490,-692.658956,0.00035841,31]
[397977704,1765262265513,-692.658956,0.00035841,31]
[397977705,1765262265535,-692.658956,0.00035841,31]
[397977706,1765262265558,-692.658956,0.00035841,31]
[397977707,1765262265582,-692.658956,0.00035841,31]
[397977708,1765262265607,-692.658956,0.00035841,31]
[397977709,1765262265630,-692.658956,0.00035841,31]
[397977710,1765262265652,-218.583861,0.00035841,31]
[397977711,1765262265675,-692.658956,0.00035841,31]
[397977712,1765262265699,-218.583861,0.00035841,31]
[397977713,1765262265723,-692.658956,0.00035841,31]
[397977714,1765262265747,-218.583861,0.00035841,31]
[397977715,1765262265770,-692.658956,0.00035841,31]
[397977716,1765262265794,-218.583861,0.00035841,31]
[397977717,1765262265819,-692.658956,0.00035841,31]
[397977718,1765262265842,-218.583861,0.00035841,31]
[397977719,1765262265866,-692.658956,0.00035841,31]
[397977720,1765262265890,-218.583861,0.00035841,31]
[397977721,1765262265914,-692.658956,0.00035841,31]
[397977722,1765262265937,-218.583861,0.00035841,31]
[397977723,1765262265961,-218.583861,0.00035841,31]
[397977724,1765262265984,-692.658956,0.00035841,31]
[397977725,1765262266008,-692.658956,0.00035841,31]
[397977726,1765262266031,-218.583861,0.00035841,31]
[397977727,1765262266055,-692.658956,0.00035841,31]
[397977728,1765262266078,-218.583861,0.00035841,31]
[397977729,1765262266101,-692.658956,0.00035841,31]
[397977730,1765262266124,-218.583861,0.00035841,31]
[397977731,1765262266148,-692.658956,0.00035841,31]
[397977732,1765262266182,-218.583861,0.00035841,31]
[397977733,1765262266214,-692.658955,0.00035841,31]
[397977734,1765262266265,-218.583861,0.00035841,31]
[397977735,1765262266305,-218.583861,0.00035841,31]
[397977736,1765262266344,-218.583861,0.00035841,31]
[397977737,1765262266383,-218.583861,0.00035841,31]
[397977738,1765262266421,-218.583861,0.00035841,31]
[397977739,1765262266453,-218.583861,0.00035841,31]
[397977740,1765262266485,-218.583861,0.00035841,31]
[397977741,1765262266518,-218.583864,0.00035841,31]
[397977742,1765262266558,-250.066685,0.00035841,31]
[397977743,1765262266591,-250.066685,0.00035841,31]
[397977744,1765262266630,-250.066685,0.00035841,31]
[397977745,1765262266665,-250.066685,0.00035841,31]
[397977746,1765262266696,-250.066685,0.00035841,31]
[397977747,1765262266732,-250.066685,0.00035841,31]
[397977748,1765262266774,-250.066685,0.00035841,31]
[397977749,1765262266825,-250.066685,0.00035841,31]
[397977750,1765262266861,-151.0,0.00035841,31]
[397977751,1765262266897,-250.066685,0.00035841,31]
[397977752,1765262266932,-151.0,0.00035841,31]
[397977753,1765262266963,-250.066685,0.00035841,31]
[397977754,1765262267000,-151.0,0.00035841,31]
[397977755,1765262267034,-250.066685,0.00035841,31]
[397977756,1765262267069,-151.0,0.00035841,31]
[397977757,1765262267101,-250.066685,0.00035841,31]
[397977758,1765262267133,-151.0,0.00035841,31]
[397977759,1765262267165,-250.066685,0.00035841,31]
[397977760,1765262267195,-250.066685,0.00035841,31]
[397977761,1765262267225,-250.066685,0.00035841,31]
[397977762,1765262267257,-250.066685,0.00035841,31]
[397977763,1765262267289,-250.066685,0.00035841,31]
[397977764,1765262267319,-250.066685,0.00035841,31]
[397977765,1765262267348,-250.066685,0.00035841,31]
[397977766,1765262267383,-250.066677,0.00035841,31]
[397977767,1765262298912,-3386.10404262,0.00017815,30]
[397977768,1765262298937,-3386.10404262,0.00017916,32]
[397977769,1765262298961,-3386.10404262,0.00018018,35]
[397977770,1765262298984,-3386.10404262,0.00018119,37]
[397977771,1765262299007,-3386.10404262,0.0001822,39]
[397977772,1765262299030,-3386.10404262,0.00018321,41]
[397977773,1765262299054,-3386.10404262,0.00018422,43]
[397977774,1765262299076,-3386.10404262,0.00018523,46]
[397977775,1765262299100,-3386.10404262,0.00018625,48]
[397977776,1765262299122,-3386.10404262,0.00018726,50]
[397977777,1765262299145,-3386.10404262,0.00018827,52]
[397977778,1765262299406,-3386.10404262,0.00018928,54]
[397977779,1765262299430,-3386.10404262,0.00019029,57]
[397977780,1765262299455,-3386.10404262,0.0001913,59]
[397977781,1765262299482,-3386.10404262,0.00019232,61]
[397977782,1765262299505,-3386.10404262,0.00019333,63]
[397977783,1765262299529,-3386.10404262,0.00019434,65]
[397977784,1765262299552,-3386.10404262,0.00019535,68]
[397977785,1765262299579,-3386.10404262,0.00019636,70]
[397977786,1765262299602,-3386.10404262,0.00019738,72]
[397977787,1765262299626,-160.0,0.000198,30]
[397977788,1765262299652,-3386.10404262,0.00019839,74]
[397977789,1765262299677,-3386.10404262,0.0001994,76]
[397977790,1765262299701,-200.0,0.0001998,30]
[397977791,1765262299728,-160.0,0.0002,30]
[397977792,1765262299752,-160.0,0.0002,30]
[397977793,1765262299777,-335.18923132,0.0002,30]
[397977794,1765262299802,-826.65023146,0.0002,30]
[397977795,1765262299826,-27838.89554219,0.0002,30]
[397977796,1765262299850,-222.0,0.0002,30]
[397977797,1765262299876,-221.57133186,0.0002002,32]
[397977798,1765262299900,-3386.10404262,0.00020041,79]
[397977799,1765262299925,-221.57133186,0.00020138,40]
[397977800,1765262299948,-3386.10404262,0.00020142,81]
[397977801,1765262299972,-3386.10404262,0.00020243,83]
[397977802,1765262299996,-221.57133186,0.00020256,48]
[397977803,1765262300021,-168.76897051,0.00020267,32]
[397977804,1765262300045,-3386.10404262,0.00020345,85]
[397977805,1765262300068,-221.57133186,0.00020373,56]
[397977806,1765262300090,-3386.10404262,0.00020446,87]
[397977807,1765262300114,-287.22315255,0.0002045,30]
[397977808,1765262300137,-221.57133186,0.00020491,63]
[397977809,1765262300160,-168.76897051,0.00020505,48]
[397977810,1765262300183,-3386.10404262,0.00020547,90]
[397977811,1765262300206,-166.66666666,0.00020579,30]
[397977812,1765262300229,-221.57133186,0.00020608,71]
[397977813,1765262300252,-3386.10404262,0.00020648,92]
[397977814,1765262300275,-221.57133186,0.00020726,79]
[397977815,1765262300299,-168.76897051,0.00020743,63]
[397977816,1765262300322,-3386.10404262,0.00020749,94]
[397977817,1765262300346,-168.7689705,0.00020832,30]
[397977818,1765262300368,-221.57133186,0.00020844,86]
[397977819,1765262300393,-3386.10404262,0.0002085,96]
[397977820,1765262300417,-3386.10404262,0.00020952,98]
[397977821,1765262300443,-221.57133186,0.00020961,94]
[397977822,1765262300473,-168.76897051,0.00020981,79]
[397977823,1765262300498,-950261.22329691,0.00021,30]
[397977824,1765262300524,-3386.10404262,0.00021053,101]
[397977825,1765262300547,-221.57133186,0.00021079,102]
[397977826,1765262300580,-3386.10404262,0.00021154,103]
[397977827,1765262300602,-221.57133186,0.00021196,110]
[397977828,1765262300626,-168.76897051,0.00021219,94]
[397977829,1765262300649,-3386.10404262,0.00021255,105]
[397977830,1765262300674,-3386.10404262,0.00021356,107]
[397977831,1765262300698,-500.0,0.000214,120]
[397977832,1765262300721,-3386.10404262,0.00021457,110]
[397977833,1765262300745,-169.07,0.00021466,30]
[397977834,1765262300769,-500.0,0.000218,120]
[397977835,1765262300800,-500.0,0.00022,120]
[397977836,1765262300822,-219.99,0.00022155,30]
[397977837,1765262300850,-338.13,0.00022488,30]
[397977838,1765262300875,-1012.2,0.00023,30]
[397977839,1765262300900,-219.99,0.0002321,30]
[397977840,1765262300925,-507.2,0.0002351,30]
[397977841,1765262300948,-2355.58453327,0.000237,30]
[397977842,1765262300973,-1000.0,0.00024,120]